fUST/lending_fUST_20250925
["ID","MTS","AMOUNT","RATE_DAILY","PERIOD"]
[387671628,1758804131049,-480.0,0.0001934,2]
[387671629,1758804131078,-480.0,0.0001934,2]
[387671630,1758804131108,-480.0,0.0001934,2]
[387671632,1758804131291,-79.76548192,0.0001934,2]
[387671637,1758804140884,-492.38334792,0.00019338,2]
[387671638,1758804141008,-480.0,0.00019338,2]
[387671639,1758804141038,-500.0,0.00019338,2]
[387671640,1758804141071,-480.0,0.00019339,2]
[387671641,1758804141101,-400.23451808,0.0001934,2]
[387671642,1758804141132,-480.0,0.0001934,2]
[387671643,1758804141161,-433.81935211,0.0001934,2]
[387671644,1758804141192,-480.0,0.0001934,2]
[387671645,1758804141221,-480.0,0.0001934,2]
[387671646,1758804141250,-542.79670214,0.0001934,2]
[387671647,1758804141427,-461.5421595,0.0001934,2]
[387671666,1758804190999,-1289.8187234,0.000193,2]
[387671667,1758804191031,-447.76565906,0.00019338,2]
[387671668,1758804191063,-486.81290291,0.00019338,2]
[387671669,1758804191092,-480.0,0.00019338,2]
[387671670,1758804191121,-480.0,0.00019338,2]
[387671671,1758804191150,-480.0,0.00019338,2]
[387671672,1758804191180,-480.0,0.00019338,2]
[387671673,1758804191329,-1711.21542926,0.00019338,2]
[387671676,1758804200935,-148.46457074,0.00019338,2]
[387671677,1758804200964,-480.0,0.00019338,2]
[387671678,1758804200995,-480.0,0.00019338,2]
[387671679,1758804201023,-480.0,0.00019338,2]
[387671680,1758804201052,-480.0,0.00019338,2]
[387671681,1758804201082,-480.0,0.00019338,2]
[387671682,1758804201112,-480.0,0.00019338,2]
[387671683,1758804201141,-480.0,0.00019338,2]
[387671684,1758804201170,-480.0,0.00019338,2]
[387671685,1758804201200,-480.0,0.00019338,2]
[387671686,1758804201231,-18.4578405,0.0001934,2]
[387671687,1758804201259,-480.0,0.0001934,2]
[387671688,1758804201452,-66.16517752,0.0001934,2]
[387671691,1758804281213,-169.14532999,0.000193,2]
[387671692,1758804281251,-9661.71934002,0.00019337,2]
[387671693,1758804291101,-4656.49951878,0.00019337,2]
[387671694,1758804291131,-207.01096244,0.00019337,2]
[387671695,1758804291167,-272.98903756,0.00019337,2]
[387671704,1758804336139,161.67958237,0.00019,2]
[387671706,1758804401412,-1200.0,0.00019336,2]
[387671707,1758804401442,-1058.2122723,0.00019336,2]
[387671708,1758804401470,-300.0,0.00019337,2]
[387671709,1758804401499,-300.0,0.00019337,2]
[387671710,1758804401528,-300.0,0.00019337,2]
[387671711,1758804401557,-300.0,0.00019337,2]
[387671712,1758804401586,-566.05504292,0.00019337,2]
[387671713,1758804401618,-480.0,0.00019337,2]
[387671714,1758804401650,-480.0,0.00019337,2]
[387671715,1758804411238,-859.87914894,0.000193,2]
[387671716,1758804411269,-480.0,0.00019337,2]
[387671717,1758804411300,-480.0,0.00019337,2]
[387671718,1758804411332,-480.0,0.00019337,2]
[387671719,1758804411362,-501.9215995,0.00019337,2]
[387671720,1758804411395,-500.41549574,0.00019337,2]
[387671721,1758804411424,-482.63016143,0.00019337,2]
[387671722,1758804411453,-336.67443414,0.00019337,2]
[387671723,1758804411482,-480.0,0.00019337,2]
[387671724,1758804411511,-316.9683205,0.00019337,2]
[387671725,1758804411789,-32.82746669,0.00019337,2]
[387671729,1758804606713,-172.44406121,0.000193,2]
[387671730,1758804606743,-240.0,0.00019335,2]
[387671731,1758804606774,-300.0,0.00019335,2]
[387671732,1758804606805,-495.44199941,0.00019336,2]
[387671733,1758804606836,-500.0,0.00019336,2]
[387671734,1758804606866,-500.0,0.00019336,2]
[387671735,1758804606898,-500.0,0.00019336,2]
[387671736,1758804606928,-236.02554558,0.00019336,2]
[387671737,1758804606960,-536.73226049,0.00019336,2]
[387671738,1758804606990,-514.44085985,0.00019336,2]
[387671739,1758804607023,-500.0,0.00019336,2]
[387671740,1758804607057,-188.91835805,0.00019336,2]
[387671741,1758804607091,-298.45042953,0.00019336,2]
[387671742,1758804607334,-35.10297176,0.00019336,2]
[387671743,1758804616619,-1200.0,0.00019335,2]
[387671744,1758804616649,-486.38902683,0.00019336,2]
[387671745,1758804616677,-344.17691011,0.00019336,2]
[387671746,1758804616710,-500.0,0.00019336,2]
[387671747,1758804616741,-500.0,0.00019336,2]
[387671748,1758804616774,-500.0,0.00019336,2]
[387671749,1758804616807,-500.0,0.00019336,2]
[387671750,1758804616838,-500.0,0.00019336,2]
[387671751,1758804616962,-438.87812612,0.00019336,2]
[387671752,1758804617086,-61.12187388,0.00019336,2]
[387671779,1758804632121,-500.0,0.00019336,2]
[387671780,1758804632131,-334.3094557,0.00019336,2]
[387671782,1758804632143,-165.6905443,0.00019336,2]
[387671783,1758804632154,-500.0,0.00019336,2]
[387671785,1758804632164,-500.0,0.00019336,2]
[387671786,1758804632173,-500.0,0.00019336,2]
[387671788,1758804632182,-500.0,0.00019336,2]
[387671789,1758804632192,-500.0,0.00019336,2]
[387671791,1758804632202,-500.0,0.00019336,2]
[387671793,1758804632211,-500.0,0.00019336,2]
[387671794,1758804632220,-500.0,0.00019336,2]
[387671796,1758804632229,-300.87532701,0.00019336,2]
[387671798,1758804632239,-500.0,0.00019336,2]
[387671800,1758804632248,-500.0,0.00019336,2]
[387671802,1758804632257,-480.0,0.00019336,2]
[387671804,1758804632267,-506.85245003,0.00019336,2]
[387671806,1758804632275,-500.0,0.00019336,2]
[387671807,1758804632285,-500.0,0.00019336,2]
[387671809,1758804632295,-500.0,0.00019336,2]
[387671810,1758804632304,-500.0,0.00019336,2]
[387671812,1758804632316,-550.0,0.00019336,2]
[387671814,1758804632326,-480.0,0.00019336,2]
[387671816,1758804632336,-480.0,0.00019336,2]
[387671818,1758804632345,-491.6859979,0.00019336,2]
[387671820,1758804632355,-480.0,0.00019336,2]
[387671822,1758804632365,-480.0,0.00019336,2]
[387671823,1758804632374,-480.0,0.00019336,2]
[387671824,1758804632383,-50000.0,0.00019337,2]
[387671825,1758804632393,-130.20421281,0.00019337,2]
[387671826,1758804632402,-492.4194385,0.00019337,2]
[387671827,1758804632412,-480.0,0.00019337,2]
[387671828,1758804632423,-546.38061726,0.00019337,2]
[387671829,1758804632432,-527.85392026,0.00019337,2]
[387671830,1758804632442,-480.0,0.00019337,2]
[387671831,1758804632452,-480.0,0.00019337,2]
[387671832,1758804632462,-480.0,0.00019337,2]
[387671833,1758804632471,-515.12004008,0.00019337,2]
[387671834,1758804632481,-480.0,0.00019337,2]
[387671835,1758804632491,-480.0,0.00019337,2]
[387671836,1758804632501,-480.0,0.00019337,2]
[387671837,1758804632510,-480.0,0.00019337,2]
[387671838,1758804632520,-480.0,0.00019337,2]
[387671839,1758804632530,-431.40342588,0.00019337,2]
[387671840,1758804632540,-480.0,0.00019337,2]
[387671841,1758804632553,-480.0,0.00019337,2]
[387671842,1758804632564,-480.0,0.00019337,2]
[387671843,1758804632573,-587.90445896,0.00019337,2]
[387671844,1758804632583,-427.34001524,0.00019337,2]
[387671845,1758804632693,-480.0,0.00019337,2]
[387671846,1758804632703,-480.0,0.00019337,2]
[387671847,1758804632713,-480.0,0.00019337,2]
[387671848,1758804632723,-480.0,0.00019337,2]
[387671849,1758804632733,-480.0,0.00019337,2]
[387671850,1758804632743,-480.0,0.00019337,2]
[387671851,1758804632753,-480.0,0.00019337,2]
[387671852,1758804632763,-173.18302609,0.00019337,2]
[387671853,1758804632773,-480.0,0.00019337,2]
[387671854,1758804632783,-491.82694816,0.00019337,2]
[387671855,1758804632792,-480.0,0.00019337,2]
[387671856,1758804632801,-480.0,0.00019337,2]
[387671857,1758804632810,-480.0,0.00019337,2]
[387671858,1758804632820,-480.0,0.00019337,2]
[387671859,1758804632829,-485.58088374,0.00019337,2]
[387671860,1758804632839,-480.0,0.00019337,2]
[387671861,1758804632849,-480.0,0.00019337,2]
[387671862,1758804632859,-480.0,0.00019337,2]
[387671863,1758804632868,-418.43094397,0.00019337,2]
[387671864,1758804632878,-480.0,0.00019337,2]
[387671865,1758804632887,-480.0,0.00019337,2]
[387671866,1758804632897,-480.0,0.00019337,2]
[387671867,1758804632907,-480.0,0.00019337,2]
[387671868,1758804632916,-480.0,0.00019337,2]
[387671869,1758804632926,-188.54439238,0.00019337,2]
[387671870,1758804632935,-502.80897597,0.00019337,2]
[387671871,1758804632945,-480.0,0.00019337,2]
[387671872,1758804632954,-480.0,0.00019337,2]
[387671873,1758804632963,-480.0,0.00019337,2]
[387671874,1758804632973,-480.0,0.00019338,2]
[387671875,1758804632983,-480.0,0.00019338,2]
[387671876,1758804632992,-480.0,0.00019338,2]
[387671877,1758804633002,-480.0,0.00019338,2]
[387671878,1758804633013,-480.0,0.00019338,2]
[387671879,1758804633023,-480.0,0.00019338,2]
[387671880,1758804633034,-480.0,0.00019338,2]
[387671881,1758804633045,-480.0,0.00019338,2]
[387671882,1758804633055,-480.0,0.00019338,2]
[387671883,1758804633067,-484.75133298,0.00019338,2]
[387671884,1758804633077,-480.0,0.00019338,2]
[387671885,1758804633089,-582.11728596,0.00019338,2]
[387671886,1758804633100,-480.0,0.00019338,2]
[387671887,1758804633110,-274.36901406,0.00019338,2]
[387671888,1758804633120,-480.0,0.00019338,2]
[387671889,1758804633130,-480.0,0.00019338,2]
[387671890,1758804633140,-480.0,0.00019338,2]
[387671891,1758804633150,-304.27857474,0.00019338,2]
[387671892,1758804633160,-480.0,0.00019338,2]
[387671893,1758804633170,-480.0,0.00019338,2]
[387671894,1758804633180,-480.0,0.00019338,2]
[387671895,1758804633190,-480.0,0.00019338,2]
[387671896,1758804633201,-481.15366163,0.00019338,2]
[387671897,1758804633210,-486.46142387,0.00019338,2]
[387671898,1758804633221,-480.0,0.00019338,2]
[387671899,1758804633231,-477.93431732,0.00019338,2]
[387671900,1758804633241,-480.66723673,0.00019338,2]
[387671901,1758804633251,-480.0,0.00019338,2]
[387671902,1758804633260,-480.0,0.00019338,2]
[387671903,1758804633270,-480.0,0.00019338,2]
[387671904,1758804633280,-480.0,0.00019338,2]
[387671905,1758804633290,-480.0,0.00019338,2]
[387671906,1758804633299,-480.0,0.00019338,2]
[387671907,1758804633309,-480.0,0.00019338,2]
[387671908,1758804633319,-480.0,0.00019338,2]
[387671909,1758804633329,-480.0,0.00019338,2]
[387671910,1758804633340,-480.0,0.00019338,2]
[387671911,1758804633349,-480.0,0.00019338,2]
[387671912,1758804633360,-480.0,0.00019338,2]
[387671913,1758804633370,-480.0,0.00019338,2]
[387671914,1758804633379,-480.0,0.00019338,2]
[387671915,1758804633390,-480.0,0.00019338,2]
[387671916,1758804633400,-480.0,0.00019338,2]
[387671917,1758804633410,-480.0,0.00019338,2]
[387671918,1758804633421,-480.0,0.00019338,2]
[387671919,1758804633431,-485.44488684,0.00019338,2]
[387671920,1758804633441,-472.9391198,0.00019338,2]
[387671921,1758804633451,-482.6898792,0.00019338,2]
[387671922,1758804633461,-480.0,0.00019338,2]
[387671923,1758804633471,-480.0,0.00019338,2]
[387671924,1758804633480,-488.50562373,0.00019338,2]
[387671925,1758804633490,-480.0,0.00019338,2]
[387671926,1758804633500,-480.0,0.00019338,2]
[387671927,1758804633510,-480.0,0.00019338,2]
[387671928,1758804633520,-480.0,0.00019338,2]
[387671929,1758804633530,-480.0,0.00019338,2]
[387671930,1758804633541,-1001.4,0.00019338,2]
[387671931,1758804633553,-480.0,0.00019339,2]
[387671932,1758804633565,-480.0,0.00019339,2]
[387671933,1758804633575,-480.0,0.00019339,2]
[387671934,1758804633585,-151.0,0.0001934,2]
[387671935,1758804633595,-151.0,0.0001934,2]
[387671936,1758804633605,-151.0,0.0001934,2]
[387671937,1758804633616,-151.0,0.0001934,2]
[387671938,1758804633626,-175.72195162,0.0001934,2]
[387671939,1758804633636,-1000.0,0.0001934,2]
[387671940,1758804633646,-1000.0,0.0001934,2]
[387671941,1758804633656,-1000.0,0.0001934,2]
[387671942,1758804633666,-1000.0,0.0001934,2]
[387671943,1758804633677,-1000.0,0.0001934,2]
[387671944,1758804633687,-480.0,0.0001934,2]
[387671945,1758804633697,-480.0,0.0001934,2]
[387671946,1758804633706,-480.0,0.0001934,2]
[387671947,1758804633716,-480.0,0.0001934,2]
[387671948,1758804633726,-480.0,0.0001934,2]
[387671949,1758804633736,-480.0,0.0001934,2]
[387671950,1758804633746,-480.0,0.0001934,2]
[387671951,1758804633756,-480.0,0.0001934,2]
[387671952,1758804633765,-480.0,0.0001934,2]
[387671953,1758804633775,-500.0,0.0001934,2]
[387671954,1758804633785,-497.68761292,0.0001934,2]
[387671955,1758804633794,-498.55067008,0.0001934,2]
[387671956,1758804633805,-480.0,0.0001934,2]
[387671957,1758804633816,-480.0,0.0001934,2]
[387671958,1758804633826,-250.39022098,0.00019341,2]
[387671959,1758804633836,-480.0,0.00019341,2]
[387671960,1758804633846,-486.81246197,0.00019341,2]
[387671961,1758804633857,-480.0,0.00019341,2]
[387671962,1758804633867,-480.0,0.00019341,2]
[387671963,1758804633877,-480.0,0.00019341,2]
[387671964,1758804633887,-480.0,0.00019341,2]
[387671965,1758804633897,-1000.0,0.00019341,2]
[387671966,1758804633909,-1000.0,0.00019341,2]
[387671967,1758804633924,-1000.0,0.00019341,2]
[387671968,1758804633934,-500.0,0.00019341,2]
[387671969,1758804633944,-480.0,0.00019342,2]
[387671970,1758804633954,-480.0,0.00019342,2]
[387671971,1758804633964,-394.24025949,0.00019342,2]
[387671972,1758804633974,-194.13980728,0.00019342,2]
[387671973,1758804633984,-480.0,0.00019342,2]
[387671974,1758804633993,-480.0,0.00019342,2]
[387671975,1758804634003,-480.0,0.00019342,2]
[387671976,1758804634012,-480.0,0.00019342,2]
[387671977,1758804634022,-480.0,0.00019342,2]
[387671978,1758804634031,-480.0,0.00019342,2]
[387671979,1758804634041,-486.90551815,0.00019342,2]
[387671980,1758804634051,-357.8423298,0.00019342,2]
[387671981,1758804634062,-480.0,0.00019342,2]
[387671982,1758804634072,-480.0,0.00019342,2]
[387671983,1758804634081,-480.0,0.00019342,2]
[387671984,1758804634090,-480.0,0.00019342,2]
[387671985,1758804634101,-480.0,0.00019342,2]
[387671986,1758804634111,-486.51937062,0.00019342,2]
[387671987,1758804634120,-480.0,0.00019342,2]
[387671988,1758804634130,-480.0,0.00019342,2]
[387671989,1758804634139,-480.0,0.00019342,2]
[387671990,1758804634149,-480.0,0.00019342,2]
[387671991,1758804634158,-1000.0,0.00019342,2]
[387671992,1758804634168,-480.0,0.00019342,2]
[387671993,1758804634179,-480.0,0.00019342,2]
[387671994,1758804634188,-480.0,0.00019342,2]
[387671995,1758804634198,-480.0,0.00019342,2]
[387671996,1758804634207,-480.0,0.00019342,2]
[387671997,1758804634217,-480.0,0.00019342,2]
[387671998,1758804634226,-480.0,0.00019342,2]
[387671999,1758804634236,-480.0,0.00019342,2]
[387672000,1758804634246,-489.38110512,0.00019342,2]
[387672001,1758804634256,-480.0,0.00019342,2]
[387672002,1758804634265,-423.32795872,0.00019342,2]
[387672003,1758804634275,-480.0,0.00019342,2]
[387672004,1758804634284,-480.0,0.00019342,2]
[387672005,1758804634294,-480.0,0.00019342,2]
[387672006,1758804634304,-480.0,0.00019342,2]
[387672007,1758804634315,-480.0,0.00019342,2]
[387672008,1758804634324,-480.0,0.00019342,2]
[387672009,1758804634334,-480.0,0.00019342,2]
[387672010,1758804634344,-480.0,0.00019342,2]
[387672011,1758804634353,-480.0,0.00019342,2]
[387672012,1758804634363,-432.13911121,0.00019342,2]
[387672013,1758804634373,-480.0,0.00019342,2]
[387672014,1758804634382,-480.0,0.00019342,2]
[387672015,1758804634392,-480.0,0.00019342,2]
[387672016,1758804634402,-480.0,0.00019342,2]
[387672017,1758804634411,-480.0,0.00019342,2]
[387672018,1758804634420,-480.0,0.00019342,2]
[387672019,1758804634430,-480.0,0.00019342,2]
[387672020,1758804634441,-480.0,0.00019342,2]
[387672021,1758804634450,-480.0,0.00019342,2]
[387672022,1758804634459,-480.0,0.00019342,2]
[387672023,1758804634469,-480.0,0.00019342,2]
[387672024,1758804634479,-480.0,0.00019342,2]
[387672025,1758804634489,-480.0,0.00019342,2]
[387672026,1758804634499,-480.0,0.00019342,2]
[387672027,1758804634508,-480.0,0.00019342,2]
[387672028,1758804634518,-480.0,0.00019342,2]
[387672029,1758804634528,-480.0,0.00019342,2]
[387672030,1758804634538,-480.0,0.00019342,2]
[387672031,1758804634551,-480.0,0.00019342,2]
[387672032,1758804634562,-480.0,0.00019342,2]
[387672033,1758804634571,-480.0,0.00019342,2]
[387672034,1758804634581,-480.0,0.00019342,2]
[387672035,1758804634591,-480.0,0.00019342,2]
[387672036,1758804634600,-480.0,0.00019342,2]
[387672037,1758804634610,-480.0,0.00019342,2]
[387672038,1758804634621,-480.0,0.00019342,2]
[387672039,1758804634631,-480.0,0.00019342,2]
[387672040,1758804634640,-480.0,0.00019342,2]
[387672041,1758804634650,-480.0,0.00019342,2]
[387672042,1758804634660,-480.0,0.00019342,2]
[387672043,1758804634669,-480.0,0.00019342,2]
[387672044,1758804634679,-480.0,0.00019342,2]
[387672045,1758804634688,-480.0,0.00019342,2]
[387672046,1758804634698,-480.0,0.00019342,2]
[387672047,1758804634708,-480.0,0.00019342,2]
[387672048,1758804634717,-462.45334388,0.00019342,2]
[387672049,1758804634726,-480.0,0.00019342,2]
[387672050,1758804634736,-480.0,0.00019342,2]
[387672051,1758804634746,-480.0,0.00019342,2]
[387672052,1758804634756,-480.0,0.00019342,2]
[387672053,1758804634766,-486.58376091,0.00019342,2]
[387672054,1758804634775,-480.0,0.00019342,2]
[387672055,1758804634864,-480.0,0.00019342,2]
[387672056,1758804634874,-480.0,0.00019342,2]
[387672057,1758804634884,-480.0,0.00019342,2]
[387672058,1758804634894,-480.0,0.00019342,2]
[387672059,1758804634903,-818.1,0.00019342,3]
[387672060,1758804634913,-194.98,0.00019342,3]
[387672061,1758804634922,-426.42673103,0.00019342,3]
[387672062,1758804634937,-158.52326897,0.00019342,3]
[387672063,1758804634947,-480.0,0.00019343,2]
[387672064,1758804634956,-1000.0,0.00019343,2]
[387672065,1758804634965,-1000.0,0.00019343,2]
[387672066,1758804634975,-923.94828287,0.00019343,2]
[387672067,1758804634986,-5354.59750527,0.00019343,2]
[387672068,1758804634996,-480.0,0.00019343,2]
[387672069,1758804635006,-487.37014948,0.00019343,2]
[387672070,1758804635016,-490.9876241,0.00019343,2]
[387672071,1758804635025,-480.0,0.00019343,2]
[387672072,1758804635035,-157.08285119,0.00019343,2]
[387672073,1758804635046,-483.0824462,0.00019343,2]
[387672074,1758804635055,-328.1897943,0.00019343,2]
[387672075,1758804635067,-155.2566953,0.00019343,2]
[387672076,1758804635077,-289.41593054,0.00019343,2]
[387672077,1758804635087,-402.56799479,0.00019351,2]
[387672078,1758804635096,-364.32650052,0.00019351,2]
[387672079,1758804635107,-1726.80952258,0.00019351,2]
[387672090,1758804637915,-480.0,0.00019336,2]
[387672091,1758804637925,-480.0,0.00019338,2]
[387672092,1758804637935,-471.33606406,0.0001934,2]
[387672093,1758804638025,-8.66393594,0.0001934,2]
[387672094,1758804638035,-480.0,0.00019342,2]
[387672095,1758804638044,-3854.32556467,0.00019351,2]
[387672096,1758804638056,-27725.41586288,0.00019351,2]
[387672097,1758804638067,-1000.0,0.00019351,2]
[387672098,1758804638078,-1000.0,0.00019351,2]
[387672099,1758804638088,-1000.0,0.00019351,2]
[387672100,1758804638097,-1000.0,0.00019351,2]
[387672102,1758804638107,-1000.0,0.00019351,2]
[387672103,1758804638117,-1000.0,0.00019351,2]
[387672104,1758804638127,-1000.0,0.00019351,2]
[387672105,1758804638136,-1000.0,0.00019351,2]
[387672106,1758804638146,-1000.0,0.00019351,2]
[387672107,1758804638156,-1000.0,0.00019351,2]
[387672108,1758804638165,-454.26102042,0.00019351,2]
[387672109,1758804638174,-500.0,0.00019351,2]
[387672110,1758804638183,-500.0,0.00019351,2]
[387672111,1758804638192,-370000.0,0.00019352,2]
[387672113,1758804638201,-500.0,0.00019373,2]
[387672115,1758804638210,-500.0,0.00019373,2]
[387672117,1758804638220,-500.0,0.00019373,2]
[387672118,1758804638229,-500.0,0.00019373,2]
[387672119,1758804638238,-500.0,0.000194,2]
[387672120,1758804638248,-480.0,0.0001961,2]
[387672121,1758804638257,-480.0,0.0001961,2]
[387672122,1758804638267,-480.0,0.0001961,2]
[387672123,1758804638277,-480.0,0.0001961,2]
[387672124,1758804638287,-480.0,0.00019611,2]
[387672125,1758804638296,-480.0,0.00019611,2]
[387672126,1758804638306,-480.0,0.00019611,2]
[387672127,1758804638317,-480.0,0.00019611,2]
[387672128,1758804638327,-480.0,0.00019611,2]
[387672129,1758804638336,-480.0,0.00019611,2]
[387672130,1758804638346,-480.0,0.00019611,2]
[387672131,1758804638356,-480.0,0.00019611,2]
[387672132,1758804638365,-480.0,0.00019611,2]
[387672133,1758804638375,-441.49998174,0.00019611,2]
[387672134,1758804638384,-493.34650557,0.00019611,2]
[387672135,1758804638394,-480.0,0.00019611,2]
[387672136,1758804638403,-480.0,0.00019611,2]
[387672137,1758804638413,-480.0,0.00019611,2]
[387672138,1758804638424,-480.0,0.00019611,2]
[387672139,1758804638434,-480.0,0.00019611,2]
[387672140,1758804638443,-233.97951444,0.00019611,2]
[387672141,1758804638453,-480.0,0.00019611,2]
[387672142,1758804638464,-480.0,0.00019611,2]
[387672143,1758804638473,-480.0,0.00019611,2]
[387672144,1758804638483,-480.0,0.00019611,2]
[387672145,1758804638493,-480.0,0.00019611,2]
[387672146,1758804638502,-497.31148601,0.00019611,2]
[387672147,1758804638512,-233.46,0.00019611,2]
[387672148,1758804638521,-480.0,0.00019611,2]
[387672149,1758804638531,-499.68031207,0.00019611,2]
[387672150,1758804638543,-480.0,0.00019612,2]
[387672151,1758804638554,-480.0,0.00019612,2]
[387672152,1758804638565,-480.0,0.00019612,2]
[387672153,1758804638575,-546.62874828,0.00019612,2]
[387672154,1758804638585,-445.59443521,0.00019612,2]
[387672155,1758804638595,-480.0,0.00019612,2]
[387672156,1758804638605,-480.0,0.00019612,2]
[387672157,1758804638616,-480.0,0.00019612,2]
[387672158,1758804638626,-191.14159526,0.00019612,2]
[387672159,1758804638636,-480.0,0.00019612,2]
[387672160,1758804638646,-546.48668989,0.00019612,2]
[387672161,1758804638656,-480.0,0.00019612,2]
[387672162,1758804638665,-485.45329202,0.00019612,2]
[387672163,1758804638675,-480.0,0.00019612,2]
[387672164,1758804638685,-480.0,0.00019612,2]
[387672165,1758804638695,-480.0,0.00019612,2]
[387672166,1758804638705,-480.0,0.00019612,2]
[387672167,1758804638715,-351.1931403,0.00019612,2]
[387672168,1758804638725,-480.0,0.00019612,2]
[387672169,1758804638735,-480.0,0.00019612,2]
[387672170,1758804638745,-480.0,0.00019612,2]
[387672171,1758804638755,-420.1469432,0.00019612,2]
[387672172,1758804638764,-480.0,0.00019612,2]
[387672173,1758804638775,-487.8373923,0.00019612,2]
[387672174,1758804638784,-480.0,0.00019612,2]
[387672175,1758804638794,-496.18705084,0.00019612,2]
[387672176,1758804638804,-1859.68,0.00019612,2]
[387672177,1758804638814,-474.92346152,0.00019612,2]
[387672178,1758804638825,-498.06943508,0.00019612,2]
[387672179,1758804638834,-480.0,0.00019612,2]
[387672180,1758804638844,-458.54071435,0.00019612,2]
[387672181,1758804638853,-480.0,0.00019612,2]
[387672182,1758804638862,-480.0,0.00019612,2]
[387672183,1758804638872,-480.0,0.00019612,2]
[387672184,1758804638881,-480.0,0.00019612,2]
[387672185,1758804638890,-480.0,0.00019612,2]
[387672186,1758804638899,-480.0,0.00019612,2]
[387672187,1758804638909,-480.0,0.00019612,2]
[387672188,1758804638919,-480.0,0.00019612,2]
[387672189,1758804638928,-480.0,0.00019612,2]
[387672190,1758804638937,-480.0,0.00019612,2]
[387672191,1758804638946,-420.24981717,0.00019612,2]
[387672192,1758804638956,-487.05152714,0.00019612,2]
[387672193,1758804638965,-480.0,0.00019612,2]
[387672194,1758804638974,-480.0,0.00019612,2]
[387672195,1758804638986,-480.0,0.00019612,2]
[387672196,1758804638995,-480.0,0.00019612,2]
[387672197,1758804639005,-480.0,0.00019612,2]
[387672198,1758804639014,-480.0,0.00019612,2]
[387672199,1758804639023,-480.0,0.00019612,2]
[387672200,1758804639033,-480.0,0.00019612,2]
[387672201,1758804639043,-480.0,0.00019612,2]
[387672202,1758804639052,-480.0,0.00019612,2]
[387672203,1758804639062,-490.66102754,0.00019612,2]
[387672204,1758804639073,-480.0,0.00019612,2]
[387672205,1758804639083,-480.0,0.00019612,2]
[387672206,1758804639092,-1001.4,0.00019612,2]
[387672207,1758804639102,-480.0,0.00019612,2]
[387672208,1758804639112,-480.0,0.00019613,2]
[387672209,1758804639122,-480.0,0.00019613,2]
[387672210,1758804639132,-480.0,0.00019613,2]
[387672211,1758804639141,-480.0,0.00019614,2]
[387672212,1758804639244,-248.18745539,0.00019614,2]
[387672213,1758804639254,-480.0,0.00019614,2]
[387672214,1758804639264,-480.0,0.00019614,2]
[387672215,1758804639273,-480.0,0.00019614,2]
[387672216,1758804639282,-480.0,0.00019614,2]
[387672217,1758804639291,-480.0,0.00019614,2]
[387672218,1758804639301,-474.60994657,0.00019615,2]
[387672219,1758804639309,-480.0,0.00019615,2]
[387672220,1758804639319,-252.3971773,0.00019615,2]
[387672221,1758804639329,-480.0,0.00019615,2]
[387672222,1758804639338,-490.73014248,0.00019615,2]
[387672223,1758804639347,-484.0659597,0.00019615,2]
[387672224,1758804639356,-480.0,0.00019615,2]